bitfinex/quotes_SOLUSD_20250306
["timestamp","ask_amount","ask_price","bid_price","bid_amount"]
[1741219202310,82.24747669,146.72,146.66,0.03]
[1741219204693,1.44747669,146.72,146.66,0.03]
[1741219204899,1.44747669,146.73,146.66,6.1117]
[1741219205290,1.44747669,146.73,146.66,0.03]
[1741219205489,1.44747669,146.73,146.62,0.03]
[1741219205490,18.64964886,146.64,146.62,0.03]
[1741219205705,18.64964886,146.62,146.56,0.03]
[1741219205906,18.64964886,146.6,146.56,0.03]
[1741219206091,12.82022747,146.61,146.56,0.03]
[1741219206092,18.64964886,146.58,146.56,0.03]
[1741219206492,1.44747669,146.59,146.56,0.03]
[1741219206692,18.64964886,146.61,146.56,0.03]
[1741219206900,1.44747669,146.6,146.56,0.03]
[1741219207215,18.64964886,146.59,146.56,0.03]
[1741219207402,18.64964886,146.57,146.56,0.03]
[1741219207796,18.64964886,146.61,146.56,0.03]
[1741219207995,18.64964886,146.59,146.56,0.03]
[1741219208196,18.64964886,146.57,146.56,0.03]
[1741219209088,20.09712555,146.59,146.53,10.58480335]
[1741219209303,18.64964886,146.57,146.53,10.58480335]
[1741219209522,18.64964886,146.55,146.53,10.58480335]
[1741219209815,20.09712555,146.54,146.53,10.58480335]
[1741219211404,20.09712555,146.54,146.52,0.03]
[1741219211405,18.64964886,146.53,146.52,0.03]
[1741219211804,20.09712555,146.54,146.52,0.03]
[1741219212600,1.44747669,146.54,146.52,0.03]
[1741219212803,1.44747669,146.56,146.52,0.03]
[1741219213002,1.44747669,146.58,146.52,0.03]
[1741219213414,13.35565939,146.53,146.5,57.58796644]
[1741219213607,13.35565939,146.53,146.49,0.03]
[1741219213920,13.35565939,146.53,146.49,6.17]
[1741219214502,21.25548768,146.53,146.49,6.12]
[1741219214720,21.25548768,146.53,146.51,18.30474076]
[1741219214918,21.25548768,146.53,146.49,6.12]
[1741219214919,21.25548768,146.53,146.52,18.30474076]
[1741219215120,21.25548768,146.53,146.52,24.81630233]
[1741219215315,4.69585187,146.54,146.52,8.12376157]
[1741219215702,4.69585187,146.54,146.53,18.30474076]
[1741219216824,10.6198352,146.6,146.53,18.30474076]
[1741219217126,10.6198352,146.6,146.53,48.82131929]
[1741219217431,10.6198352,146.6,146.54,18.30474076]
[1741219217723,20.09712555,146.59,146.53,30.51657853]
[1741219217902,1.44747669,146.59,146.53,30.51657853]
[1741219218106,91.4198352,146.61,146.55,18.30474076]
[1741219218425,10.6198352,146.61,146.55,48.82131929]
[1741219218801,10.6198352,146.61,146.57,18.30474076]
[1741219219006,10.6198352,146.61,146.58,6.14]
[1741219219210,10.6198352,146.61,146.6,18.30474076]
[1741219219613,42.71975255,146.64,146.6,18.30474076]
[1741219219815,42.71975255,146.64,146.63,18.30474076]
[1741219221923,99.44964886,146.7,146.61,7.834]
[1741219222130,18.64964886,146.68,146.61,7.834]
[1741219222325,18.64964886,146.66,146.57,36.60407853]
[1741219222523,18.64964886,146.66,146.58,35.44974517]
[1741219222524,1.44747669,146.65,146.58,35.44974517]
[1741219222712,20.09712555,146.66,146.59,29.30974517]
[1741219222906,80.8,146.67,146.59,29.30974517]
[1741219223508,1.44747669,146.67,146.6,29.30974517]
[1741219223725,1.44747669,146.67,146.61,29.30974517]
[1741219224034,1.44747669,146.71,146.63,29.30974517]
[1741219224237,18.64964886,146.7,146.63,30.51657853]
[1741219224533,1.44747669,146.69,146.63,30.51657853]
[1741219225509,82.24747669,146.71,146.63,59.8263237]
[1741219226239,82.24747669,146.71,146.63,30.51657853]
[1741219227326,92.86731189,146.71,146.63,30.51657853]
[1741219227632,10.6198352,146.71,146.65,29.30974517]
[1741219227934,10.6198352,146.71,146.66,6.14]
[1741219229221,12.06731189,146.73,146.66,6.14]
[1741219229631,18.64964886,146.72,146.66,6.14]
[1741219229934,18.64964886,146.7,146.66,6.14]
[1741219231631,1.44747669,146.71,146.66,6.14]
[1741219231844,10.6198352,146.72,146.68,29.30974517]
[1741219232027,10.6198352,146.72,146.69,29.30974517]
[1741219232333,10.6198352,146.72,146.7,29.30974517]
[1741219232736,10.6198352,146.72,146.69,66.4893237]
[1741219232937,0.033,146.74,146.69,37.17957853]
[1741219233342,0.033,146.7,146.69,37.17957853]
[1741219234020,0.033,146.7,146.69,73.3063237]
[1741219234633,0.033,146.7,146.69,73.44848527]
[1741219235337,0.033,146.74,146.7,0.14216157]
[1741219235529,0.033,146.74,146.73,29.30974517]
[1741219235737,0.033,146.74,146.73,124.1263237]
[1741219236346,0.033,146.74,146.73,94.81657853]
[1741219236639,0.033,146.74,146.71,30.51657853]
[1741219237639,0.033,146.74,146.71,59.8263237]
[1741219239421,0.033,146.74,146.71,30.51657853]
[1741219239639,0.033,146.74,146.69,107.61957853]
[1741219239846,0.033,146.74,146.69,43.31957853]
[1741219240024,0.033,146.74,146.69,30.51657853]
[1741219240222,1.48047669,146.74,146.69,30.51657853]
[1741219240423,1.48047669,146.74,146.68,6.14]
[1741219241245,0.033,146.74,146.68,6.14]
[1741219241447,0.033,146.74,146.67,124.1263237]
[1741219241625,0.033,146.74,146.69,29.30974517]
[1741219242252,0.033,146.74,146.68,35.44974517]
[1741219242629,0.033,146.74,146.68,42.26684517]
[1741219244548,0.033,146.74,146.68,72.7834237]
[1741219244727,0.033,146.74,146.68,36.65657853]
[1741219245129,18.68264886,146.74,146.66,30.51657853]
[1741219245323,80.8,146.73,146.65,29.30974517]
[1741219245535,80.8,146.73,146.66,29.30974517]
[1741219245729,80.8,146.73,146.67,29.30974517]
[1741219245949,80.8,146.73,146.66,6.14]
[1741219246141,1.44747669,146.72,146.66,6.14]
[1741219247445,1.44747669,146.72,146.66,12.9584]
[1741219247647,80.8,146.73,146.66,42.26814517]
[1741219247841,80.8,146.73,146.67,29.30974517]
[1741219248042,80.8,146.73,146.68,29.30974517]
[1741219248232,80.8,146.73,146.69,29.30974517]
[1741219248434,0.033,146.74,146.69,59.8263237]
[1741219249151,0.033,146.74,146.7,6.8166]
[1741219249342,0.033,146.74,146.7,36.12634517]
[1741219250445,0.033,146.74,146.69,66.3668237]
[1741219250653,0.033,146.74,146.69,30.51657853]
[1741219251852,0.033,146.74,146.69,37.33357853]
[1741219252351,0.033,146.74,146.7,29.30974517]
[1741219253354,0.033,146.74,146.71,6.8161]
[1741219253532,0.033,146.74,146.71,37.33267853]
[1741219254458,0.033,146.74,146.71,66.6424237]
[1741219254832,0.033,146.74,146.71,30.51657853]
[1741219255342,0.033,146.74,146.69,94.81657853]
[1741219255855,0.033,146.74,146.69,101.63357853]
[1741219256044,0.033,146.74,146.69,94.81657853]
[1741219256248,0.033,146.74,146.69,100.93657853]
[1741219257144,20.033,146.74,146.69,100.93657853]
[1741219257934,20.033,146.74,146.69,107.75347853]
[1741219258134,20.033,146.74,146.69,94.81657853]
[1741219258637,20.033,146.74,146.68,0.03]
[1741219258638,20.0,146.72,146.68,0.03]
[1741219258960,1.44747669,146.71,146.68,0.03]
[1741219259155,20.0,146.72,146.68,0.03]
[1741219260338,20.0,146.72,146.66,72.7647237]
[1741219260539,20.0,146.72,146.66,36.63657853]
[1741219260740,20.0,146.72,146.66,43.45487853]
[1741219260956,20.0,146.72,146.67,29.30974517]
[1741219261335,0.033,146.74,146.67,29.30974517]
[1741219262439,0.033,146.74,146.68,6.8175]
[1741219263767,1.44747669,146.73,146.66,36.63657853]
[1741219264064,8.09047669,146.73,146.66,30.51657853]
[1741219264366,8.09047669,146.73,146.66,66.6446237]
[1741219264951,6.643,146.73,146.66,66.6446237]
[1741219265370,1.44747669,146.72,146.66,30.51657853]
[1741219265751,10.6528352,146.74,146.67,29.30974517]
[1741219265945,10.6528352,146.74,146.68,29.30974517]
[1741219266465,1.44747669,146.73,146.66,30.51657853]
[1741219266663,12.10031189,146.74,146.66,59.8263237]
[1741219266963,30.74996075,146.74,146.66,66.6446237]
[1741219267341,12.10031189,146.74,146.66,66.6446237]
[1741219267542,12.10031189,146.74,146.66,72.7646237]
[1741219268163,12.10031189,146.74,146.66,72.7946237]
[1741219268742,12.10031189,146.74,146.67,29.30974517]
[1741219268937,10.6528352,146.74,146.69,29.30974517]
[1741219269167,10.6528352,146.74,146.73,29.30974517]
[1741219269366,10.6528352,146.74,146.73,59.8263237]
[1741219270448,10.6528352,146.74,146.73,66.6415237]
[1741219270650,10.6528352,146.74,146.73,66.78368527]
[1741219270854,10.6528352,146.74,146.73,85.43333413]
[1741219271371,0.033,146.74,146.73,150.15981884]
[1741219271574,7.04e-05,146.76,146.75,0.56864628]
[1741219271744,7.04e-05,146.76,146.75,59.66775394]
[1741219272238,7.04e-05,146.76,146.75,62.6253556]
[1741219272445,7.04e-05,146.76,146.75,65.9663237]
[1741219273166,7.04e-05,146.76,146.75,84.75813413]
[1741219273352,7.04e-05,146.76,146.75,91.57243413]
[1741219273543,7.04e-05,146.76,146.75,65.9663237]
[1741219273938,7.04e-05,146.76,146.75,36.65657853]
[1741219274170,7.04e-05,146.76,146.75,65.9663237]
[1741219275641,7.04e-05,146.76,146.75,91.57243413]
[1741219275843,7.04e-05,146.76,146.75,91.99891884]
[1741219276043,7.04e-05,146.76,146.75,156.29891884]
[1741219276844,7.04e-05,146.77,146.76,27.45519514]
[1741219277043,7.04e-05,146.79,146.78,39.21829514]
[1741219277358,7.04e-05,146.79,146.78,194.08406457]
[1741219277572,7.04e-05,146.79,146.78,162.91813413]
[1741219278047,7.04e-05,146.79,146.78,169.73103413]
[1741219278572,7.04e-05,146.79,146.78,170.15751884]
[1741219278952,7.04e-05,146.8,146.79,0.56864628]
[1741219279145,7.04e-05,146.8,146.79,176.08399297]
[1741219279348,7.04e-05,146.8,146.79,181.46676401]
[1741219282253,7.04e-05,146.81,146.8,18.79181043]
[1741219282455,7.04e-05,146.81,146.8,78.84081755]
[1741219282850,7.04e-05,146.81,146.8,130.2663237]
[1741219283975,7.04e-05,146.81,146.8,137.0782237]
[1741219284152,7.04e-05,146.81,146.8,130.9382237]
[1741219284470,7.04e-05,146.81,146.8,137.0782237]
[1741219284677,7.04e-05,146.81,146.8,155.87003413]
[1741219286671,7.04e-05,146.81,146.8,185.60626401]
[1741219287047,0.033,146.86,146.84,20.0]
[1741219287253,0.033,146.89,146.84,20.0]
[1741219287254,0.033,146.89,146.85,49.95741022]
[1741219287552,0.033,146.89,146.88,77.41130077]
[1741219287747,0.033,146.89,146.88,178.3678089]
[1741219288269,0.033,146.89,146.88,178.79429361]
[1741219288461,0.033,146.9,146.88,185.60249361]
[1741219288666,0.033,146.9,146.89,30.73853606]
[1741219288870,0.033,146.9,146.89,125.55504419]
[1741219289267,0.033,146.9,146.89,144.77333933]
[1741219289472,0.0001,146.9,146.89,150.15234844]
[1741219289770,0.0001,146.9,146.89,149.72586373]
[1741219290169,0.0001,146.9,146.89,142.91806373]
[1741219292066,0.0001,146.9,146.89,59.8262533]
[1741219292375,0.0001,146.9,146.89,66.6340533]
[1741219292556,0.0001,146.9,146.89,85.42586373]
[1741219292873,0.0001,146.9,146.89,66.6340533]
[1741219293086,0.0001,146.9,146.89,30.51650813]
[1741219293370,0.0001,146.9,146.89,59.8262533]
[1741219293581,0.0001,146.9,146.89,78.61806373]
[1741219293764,0.0001,146.9,146.89,85.42586373]
[1741219294556,0.0001,146.9,146.89,91.58586373]
[1741219294851,0.0001,146.9,146.89,155.88586373]
[1741219295787,0.0001,146.9,146.89,156.31234844]
[1741219295954,0.0001,146.9,146.89,92.01234844]
[1741219296158,0.0001,146.9,146.89,91.58586373]
[1741219296776,0.0001,146.9,146.89,72.7940533]
[1741219298094,0.0001,146.9,146.89,137.0940533]
[1741219299569,0.0001,146.9,146.89,59.8262533]
[1741219299779,0.0001,146.9,146.89,36.67650813]
[1741219300080,0.0001,146.9,146.89,72.7940533]
[1741219300598,0.0001,146.9,146.89,36.67650813]
[1741219300903,0.0001,146.9,146.89,72.7940533]
[1741219301100,0.0001,146.9,146.89,65.9862533]
[1741219301307,0.0001,146.9,146.89,36.67650813]
[1741219301505,0.0001,146.9,146.89,72.7940533]
[1741219303619,0.0001,146.9,146.89,65.9862533]
[1741219303917,0.0001,146.9,146.89,36.67650813]
[1741219304097,0.0001,146.9,146.89,43.48430813]
[1741219304606,0.0001,146.9,146.89,72.7940533]
[1741219306407,0.0001,146.9,146.89,137.23621487]
[1741219306588,0.0001,146.9,146.89,144.81133468]
[1741219307582,0.0001,146.9,146.89,126.01952425]
[1741219309001,0.0001,146.9,146.89,54.91172425]
[1741219309307,0.0001,146.9,146.89,61.71952425]
[1741219313380,0.0001,146.9,146.89,126.01952425]
[1741219320492,0.0001,146.9,146.89,107.78430813]
[1741219320689,0.0001,146.9,146.89,126.01952425]
[1741219324197,0.0001,146.9,146.89,144.81133468]
[1741219324989,0.0001,146.9,146.89,145.23781939]
[1741219325192,0.0001,146.91,146.9,19.21829514]
[1741219325399,0.0001,146.91,146.9,38.88209242]
[1741219325887,0.0001,146.91,146.9,45.20789242]
[1741219326692,0.0001,146.91,146.9,128.16999972]
[1741219326889,0.0001,146.91,146.9,145.40311939]
[1741219327386,0.0001,146.91,146.9,30.51650813]
[1741219329924,0.0001,146.91,146.88,0.03]
[1741219330201,20.0,146.89,146.88,0.03]
[1741219330373,6.0497,146.88,146.81,30.51650813]
[1741219330581,1.44747669,146.87,146.82,6.1]
[1741219330880,1.44747669,146.87,146.78,41.10975094]
[1741219330881,18.64964886,146.86,146.78,41.10975094]
[1741219331092,3.00377669,146.85,146.8,6.1]
[1741219331591,1.5563,146.85,146.8,24.33521612]
[1741219331795,1.5563,146.85,146.81,18.23521612]
[1741219332103,1.5563,146.85,146.81,48.75172425]
[1741219332596,1.5563,146.85,146.81,30.51650813]
[1741219332896,20.09712555,146.84,146.78,10.59324281]
[1741219333696,3.00377669,146.85,146.77,31.16851612]
[1741219333883,3.00377669,146.85,146.77,24.35521612]
[1741219334696,18.64964886,146.84,146.77,6.12]
[1741219334897,1.44747669,146.83,146.75,30.54650813]
[1741219335685,1.44747669,146.83,146.75,48.78172425]
[1741219335888,20.0,146.81,146.75,30.54650813]
[1741219336286,20.0,146.81,146.75,37.36060813]
[1741219337494,82.24747669,146.84,146.76,18.23521612]
[1741219338195,82.24747669,146.84,146.77,18.23521612]
[1741219338602,80.8,146.84,146.78,6.8129]
[1741219338776,20.0,146.83,146.78,6.8129]
[1741219338980,20.0,146.83,146.77,37.32970813]
[1741219339303,20.0,146.83,146.77,30.51650813]
[1741219339502,20.0,146.83,146.77,37.32980813]
[1741219339905,20.0,146.83,146.77,30.51650813]
[1741219340201,20.0,146.83,146.77,55.56482425]
[1741219340697,3.00377669,146.85,146.81,25.04671612]
[1741219340698,1.5563,146.85,146.81,25.04671612]
[1741219340906,1.5563,146.85,146.81,55.56322425]
[1741219341986,7.7015,146.88,146.83,6.8105]
[1741219342195,7.7015,146.88,146.83,37.32700813]
[1741219342706,7.7015,146.88,146.83,30.51650813]
[1741219344384,0.033,146.9,146.85,18.23521612]
[1741219344902,0.033,146.9,146.84,18.23521612]
[1741219345293,0.033,146.9,146.85,6.8096]
[1741219346313,0.033,146.9,146.84,6.81]
[1741219346490,20.0,146.89,146.83,64.3]
[1741219346690,21.44747669,146.89,146.83,81.3]
[1741219347004,21.44747669,146.89,146.81,6.12]
[1741219347207,20.0,146.89,146.83,99.53521612]
[1741219347406,20.0,146.89,146.84,6.8101]
[1741219347907,20.0,146.89,146.84,88.1101]
[1741219348098,20.0,146.89,146.84,106.34531612]
[1741219348403,0.033,146.9,146.86,18.23521612]
[1741219348609,0.033,146.9,146.86,99.53521612]
[1741219348992,7.9607,146.92,146.86,99.53521612]
[1741219349181,1.6399,146.92,146.88,18.23521612]
[1741219349387,1.6399,146.92,146.89,12.9274]
[1741219349583,1.6507,146.96,146.89,111.96261612]
[1741219350823,1.6507,146.96,146.9,18.23521612]
[1741219351025,1.6507,146.96,146.91,18.23521612]
[1741219351312,1.6507,146.96,146.92,18.23521612]
[1741219351507,0.033,146.96,146.92,99.53521612]
[1741219352301,0.033,146.96,146.92,81.3]
[1741219352720,0.033,146.96,146.92,88.1064]
[1741219352897,0.033,146.96,146.92,81.3]
[1741219354140,0.033,146.96,146.92,99.53521612]
[1741219354624,0.033,146.96,146.92,81.3]
[1741219354798,0.033,146.96,146.91,6.1]
[1741219355808,7.7798,146.94,146.88,81.3]
[1741219356000,1.44747669,146.93,146.88,81.3]
[1741219356208,7.7798,146.94,146.88,81.3]
[1741219356888,7.7798,146.94,146.88,106.34341612]
[1741219357093,7.7798,146.94,146.89,18.23521612]
[1741219357094,1.544,146.94,146.89,18.23521612]
[1741219357920,0.033,146.96,146.92,18.23521612]
[1741219358134,0.033,146.96,146.93,18.23521612]
[1741219358727,0.033,146.96,146.92,99.53521612]
[1741219358918,0.033,146.96,146.92,106.34131612]
[1741219359521,0.033,146.96,146.93,18.23521612]
[1741219359724,0.033,146.96,146.95,18.23521612]
[1741219360033,0.033,146.96,146.95,105.63521612]
[1741219360440,0.033,146.96,146.95,87.4]
[1741219361115,0.033,146.96,146.95,399.4]
[1741219361437,0.033,146.96,146.95,87.4]
[1741219363524,0.033,146.96,146.91,6.1]
[1741219363725,1.48047669,146.96,146.91,6.1]
[1741219364445,1.6336,146.95,146.91,6.1]
[1741219366627,1.44747669,146.94,146.88,81.33]
[1741219366832,20.0,146.94,146.88,106.37331612]
[1741219368223,20.0,146.94,146.88,99.56521612]
[1741219368739,1.6336,146.95,146.91,18.23521612]
[1741219368925,0.033,146.96,146.93,18.23521612]
[1741219369320,0.033,146.96,146.91,81.3]
[1741219369522,0.033,146.96,146.92,18.23521612]
[1741219369722,0.033,146.96,146.92,411.53521612]
[1741219370032,0.033,146.96,146.93,18.23521612]
[1741219370236,0.033,146.96,146.94,18.23521612]
[1741219370447,0.033,146.96,146.95,6.1]
[1741219371552,0.033,146.96,146.95,105.63521612]
[1741219371725,0.033,146.96,146.95,87.4]
[1741219372619,0.033,146.96,146.95,94.205]
[1741219373347,0.033,146.96,146.95,87.4]
[1741219373640,0.033,146.96,146.95,94.205]
[1741219373839,0.033,146.96,146.95,112.44021612]
[1741219376061,0.033,146.96,146.95,424.44021612]
[1741219378137,0.033,146.96,146.95,443.23202655]
[1741219378335,0.033,146.96,146.95,507.53202655]
[1741219379427,0.033,146.96,146.92,88.1062]
[1741219379632,0.033,146.96,146.93,18.23521612]
[1741219380429,0.033,146.96,146.94,18.23521612]
[1741219381247,0.033,146.96,146.94,163.83521612]
[1741219381735,0.033,146.96,146.94,145.6]
[1741219382450,0.033,146.96,146.94,152.4052]
[1741219382669,0.033,146.96,146.94,170.64041612]
[1741219383275,0.033,146.96,146.95,18.23521612]
[1741219383439,0.033,146.96,146.95,37.02702655]
[1741219383837,0.033,146.96,146.95,43.83202655]
[1741219384141,0.033,146.96,146.95,189.43202655]
[1741219384360,6.0869,147.05,146.95,213.43061126]
[1741219384569,6.0869,147.05,146.99,18.23521612]
[1741219384770,6.0869,147.05,147.0,6.08]
[1741219385276,6.0869,147.05,147.0,87.38]
[1741219385978,6.0869,147.05,147.0,94.1825]
[1741219386275,0.033,147.05,147.0,112.41771612]
[1741219386479,0.033,147.05,147.02,18.23521612]
[1741219386778,0.033,147.05,147.04,18.23521612]
[1741219387981,0.033,147.05,147.04,25.03601612]
[1741219388981,0.033,147.05,147.04,170.63601612]
[1741219389187,2.047585,147.1,147.04,170.63601612]
[1741219389188,0.435685,147.1,147.05,19.21829514]
[1741219389493,0.435685,147.1,147.07,18.23521612]
[1741219389780,0.435685,147.1,147.08,6.08]
[1741219389947,0.435685,147.1,147.08,399.38]
[1741219390680,0.435685,147.1,147.08,393.3]
[1741219390873,0.435685,147.1,147.08,81.3]
[1741219391106,0.435685,147.1,147.06,87.38]
[1741219391478,0.435685,147.1,147.06,81.3]
[1741219391785,0.435685,147.1,147.02,151.68]
[1741219391986,0.435685,147.1,147.02,87.38]
[1741219392493,0.435685,147.1,147.02,105.61521612]
[1741219392649,1.44747669,147.09,147.02,81.3]
[1741219392993,1.5958,147.08,147.02,81.3]
[1741219393280,1.44747669,147.07,147.02,81.3]
[1741219393489,1.5958,147.08,147.02,81.3]
[1741219393848,1.5958,147.08,147.02,99.53521612]
[1741219394068,1.5958,147.08,147.02,81.3]
[1741219394383,0.435685,147.1,147.03,18.23521612]
[1741219394596,0.435685,147.1,147.03,81.3]
[1741219395652,1.88316169,147.1,147.03,81.3]
[1741219396186,0.435685,147.1,147.03,99.53521612]
[1741219396468,0.435685,147.1,147.03,81.3]
[1741219396968,0.435685,147.1,147.03,99.53521612]
[1741219397672,0.435685,147.1,147.03,81.3]
[1741219397875,1.44747669,147.09,147.03,81.3]
[1741219398169,1.88316169,147.1,147.03,81.3]
[1741219398380,0.435685,147.1,147.03,81.3]
[1741219399277,0.435685,147.1,147.03,99.53521612]
[1741219399967,0.435685,147.1,147.04,18.23521612]
[1741219400349,0.435685,147.1,147.04,163.83521612]
[1741219400553,0.435685,147.1,147.05,18.23521612]
[1741219400971,0.435685,147.1,147.04,163.83521612]
[1741219401278,0.435685,147.1,147.05,18.23521612]
[1741219402264,0.435685,147.1,147.04,163.83521612]
[1741219402674,0.435685,147.1,147.05,18.23521612]
[1741219402880,0.435685,147.1,147.05,330.23521612]
[1741219403081,0.435685,147.1,147.07,18.23521612]
[1741219403268,0.435685,147.1,147.09,18.23521612]
[1741219403456,0.435685,147.1,147.08,24.31521612]
[1741219404073,0.435685,147.1,147.08,6.08]
[1741219405894,0.435685,147.1,147.08,24.31521612]
[1741219406119,0.435685,147.1,147.09,18.23521612]
[1741219406391,0.435685,147.1,147.09,330.23521612]
[1741219407277,0.435685,147.1,147.09,501.11622655]
[1741219407473,0.435685,147.1,147.09,189.11622655]
[1741219408160,0.435685,147.1,147.09,189.54271126]
[1741219410321,21.5441,147.2,147.12,20.0]
[1741219410533,21.5441,147.2,147.14,18.23521612]
[1741219410902,21.5441,147.2,147.12,183.83521612]
[1741219411728,21.5441,147.2,147.12,190.63191612]
[1741219412500,21.5441,147.2,147.13,6.08]
[1741219413733,21.5441,147.2,147.13,12.8764]
[1741219413942,21.5441,147.2,147.13,424.41161612]
[1741219414248,1.5558,147.25,147.17,18.23521612]
[1741219414413,1.5558,147.25,147.18,18.23521612]
[1741219414736,1.5558,147.25,147.18,81.3]
[1741219414904,1.5558,147.25,147.18,99.53521612]
[1741219415328,0.033,147.25,147.22,18.23521612]
[1741219415637,0.033,147.25,147.23,6.1]
[1741219417544,0.033,147.25,147.23,24.33521612]
[1741219418414,0.033,147.25,147.23,6.1]
[1741219418948,0.033,147.25,147.23,31.12711612]
[1741219419136,0.033,147.25,147.23,24.33521612]
[1741219419734,0.033,147.25,147.23,6.1]
[1741219420237,0.033,147.25,147.22,18.23521612]
[1741219420433,0.033,147.25,147.24,6.1]
[1741219420851,0.033,147.25,147.21,87.42]
[1741219421341,0.033,147.25,147.22,18.23521612]
[1741219421537,0.033,147.25,147.24,24.76361612]
[1741219421741,0.033,147.25,147.24,43.98191126]
[1741219421914,83.87887669,147.36,147.24,24.90577769]
[1741219422114,83.87887669,147.36,147.25,18.23521612]
[1741219422115,98.95313044,147.36,147.25,18.23521612]
[1741219422310,98.95313044,147.36,147.24,13.3199]
[1741219422311,18.64964886,147.35,147.24,24.76361612]
[1741219422559,18.64964886,147.33,147.23,81.3]
[1741219422710,82.24747669,147.32,147.23,99.53521612]
[1741219423225,82.24747669,147.32,147.23,106.32711612]
[1741219423615,82.24747669,147.32,147.23,81.3]
[1741219423816,99.44964886,147.31,147.23,81.3]
[1741219424033,18.64964886,147.28,147.23,81.3]
[1741219425115,1.6279,147.29,147.23,81.3]
[1741219425324,1.6279,147.29,147.23,99.53521612]
[1741219425630,80.8,147.3,147.23,81.3]
[1741219425832,20.0,147.31,147.24,18.23521612]
[1741219426031,20.0,147.31,147.24,99.53521612]
[1741219426235,20.0,147.3,147.24,99.53521612]
[1741219426447,1.44747669,147.32,147.24,106.32661612]
[1741219426618,20.09712555,147.33,147.24,106.32661612]
[1741219426935,20.09712555,147.33,147.24,99.53521612]
[1741219427134,20.0,147.3,147.24,81.3]
[1741219427320,1.44747669,147.31,147.24,81.3]
[1741219428730,1.44747669,147.31,147.24,393.3]
[1741219428919,1.44747669,147.31,147.24,400.0915]
[1741219429445,1.44747669,147.31,147.24,393.3]
[1741219429945,1.44747669,147.31,147.24,81.3]
[1741219430145,1.44747669,147.31,147.24,88.0915]
[1741219430346,1.44747669,147.33,147.25,18.23521612]
[1741219430532,1.44747669,147.33,147.26,18.23521612]
[1741219431347,80.8,147.35,147.27,6.7902]
[1741219431348,20.09712555,147.34,147.27,6.7902]
[1741219431543,0.033,147.31,147.26,99.53521612]
[1741219431748,0.033,147.31,147.26,88.0905]
[1741219432954,0.033,147.31,147.27,312.0]
[1741219433951,0.033,147.31,147.3,38.23521612]
[1741219434128,0.033,147.31,147.3,44.53737769]
[1741219434330,1.7228018,147.39,147.34,20.0]
[1741219434535,1.7228018,147.39,147.38,18.23521612]
[1741219434730,1.7228018,147.39,147.38,6.2]
[1741219435542,1.7228018,147.39,147.38,24.43521612]
[1741219435839,21.54252355,147.5,147.38,32.79341612]
[1741219435840,22.99000024,147.5,147.38,32.79341612]
[1741219436044,1.44747669,147.48,147.41,18.23521612]
[1741219436951,1.44747669,147.48,147.41,337.01881612]
[1741219437255,81.1,147.5,147.41,337.01881612]
[1741219437256,1.74747669,147.5,147.42,18.23521612]
[1741219437468,0.3,147.5,147.42,18.23521612]
[1741219437642,1.74747669,147.5,147.42,18.23521612]
[1741219437846,20.3,147.5,147.42,18.23521612]
[1741219438045,21.74747669,147.5,147.42,25.01831612]
[1741219438252,18.64964886,147.49,147.38,14.5578]
[1741219438442,1.44747669,147.48,147.38,14.5578]
[1741219438635,1.44747669,147.48,147.4,18.23521612]
[1741219439056,18.64964886,147.49,147.41,18.23521612]
[1741219439057,20.0,147.49,147.41,18.23521612]
[1741219439252,0.3,147.5,147.42,18.23521612]
[1741219439932,20.3,147.5,147.42,18.23521612]
[1741219440134,20.3,147.5,147.46,18.23521612]
[1741219440135,0.3,147.5,147.46,18.23521612]
[1741219440452,0.3,147.5,147.47,24.61521612]
[1741219440630,0.3,147.5,147.47,6.38]
[1741219441036,0.3,147.5,147.45,18.23521612]
[1741219441346,0.3,147.5,147.44,318.0173]
[1741219441347,0.3,147.5,147.46,24.61521612]
[1741219442260,0.3,147.5,147.46,6.38]